fUST/lending_fUST_20240923
["ID","MTS","AMOUNT","RATE_DAILY","PERIOD"]
[338988627,1727103047432,-500.0,0.00037808,30]
[338988628,1727103047443,-500.0,0.00037808,30]
[338988629,1727103047452,-500.0,0.00037808,30]
[338988630,1727103047465,-500.0,0.00037808,30]
[338988631,1727103047474,-435.13377561,0.00037808,30]
[338988632,1727103047483,-500.0,0.00037808,30]
[338988633,1727103047493,-500.0,0.00037808,30]
[338988634,1727103047501,-500.0,0.00037808,30]
[338988635,1727103047510,-500.0,0.00037808,30]
[338988636,1727103047519,-599.34847464,0.00037808,30]
[338988637,1727103047528,-500.0,0.00037808,30]
[338988638,1727103047537,-1000.0,0.00037808,120]
[338988639,1727103047546,-500.0,0.00037808,30]
[338988640,1727103047555,-500.0,0.00037808,30]
[338988641,1727103047564,-500.0,0.00037808,30]
[338988642,1727103047573,-500.0,0.00037808,30]
[338988643,1727103047582,-500.0,0.00037808,30]
[338988644,1727103047591,-500.0,0.00037808,30]
[338988645,1727103047600,-621.84844645,0.00037808,30]
[338988646,1727103047609,-500.0,0.00037808,7]
[338988647,1727103047618,-500.0,0.00037808,30]
[338988648,1727103047627,-500.0,0.00037808,30]
[338988649,1727103047637,-500.0,0.00037808,30]
[338988650,1727103047646,-500.0,0.00037808,30]
[338988651,1727103047655,-500.0,0.00037808,30]
[338988652,1727103047665,-500.0,0.00037808,30]
[338988653,1727103047674,-500.0,0.00037808,30]
[338988654,1727103047683,-502.06504265,0.00037808,30]
[338988655,1727103047692,-500.0,0.00037808,30]
[338988656,1727103047702,-503.13582169,0.00037808,30]
[338988657,1727103047711,-500.0,0.00037808,30]
[338988658,1727103047720,-500.0,0.00037808,30]
[338988659,1727103047729,-500.0,0.00037808,30]
[338988660,1727103047739,-200.0,0.00037808,30]
[338988661,1727103047748,-500.0,0.00037808,30]
[338988662,1727103047757,-500.0,0.00037808,30]
[338988663,1727103047766,-500.0,0.00037808,30]
[338988664,1727103047775,-500.0,0.00037808,30]
[338988665,1727103047785,-500.0,0.00037808,30]
[338988666,1727103047794,-500.0,0.00037808,30]
[338988667,1727103047803,-500.0,0.00037808,30]
[338988668,1727103047813,-500.0,0.00037808,5]
[338988669,1727103047822,-500.0,0.00037808,30]
[338988670,1727103047831,-500.0,0.00037808,30]
[338988671,1727103047840,-500.0,0.00037808,30]
[338988672,1727103047849,-500.0,0.00037808,30]
[338988673,1727103047859,-500.0,0.00037808,30]
[338988674,1727103047868,-500.0,0.00037808,7]
[338988675,1727103047877,-500.0,0.00037808,30]
[338988676,1727103047886,-1117.26414818,0.00037808,30]
[338988677,1727103047895,-500.0,0.00037808,30]
[338988678,1727103047905,-500.0,0.00037808,30]
[338988679,1727103047914,-500.0,0.00037808,30]
[338988680,1727103047923,-500.0,0.00037808,30]
[338988681,1727103047933,-500.0,0.00037808,30]
[338988682,1727103047942,-500.0,0.00037808,30]
[338988683,1727103047951,-500.0,0.00037808,30]
[338988684,1727103047961,-500.0,0.00037808,30]
[338988685,1727103047971,-500.0,0.00037808,30]
[338988686,1727103047979,-500.0,0.00037808,30]
[338988687,1727103047988,-500.0,0.00037808,30]
[338988688,1727103048051,-500.0,0.00037808,30]
[338988689,1727103048061,-500.0,0.00037808,30]
[338988690,1727103048070,-500.0,0.00037808,30]
[338988691,1727103048080,-512.57956298,0.00037808,30]
[338988692,1727103048089,-500.0,0.00037808,30]
[338988693,1727103048099,-500.0,0.00037808,30]
[338988694,1727103048108,-500.0,0.00037808,30]
[338988695,1727103048117,-500.0,0.00037808,30]
[338988696,1727103048126,-500.0,0.00037808,30]
[338988697,1727103048136,-151.0,0.00037808,14]
[338988698,1727103048145,-151.0,0.00037808,14]
[338988699,1727103048154,-151.0,0.00037808,14]
[338988700,1727103048163,-151.0,0.00037808,14]
[338988701,1727103048173,-500.0,0.00037808,30]
[338988702,1727103048182,-151.0,0.00037808,14]
[338988703,1727103048193,-506.13,0.00037808,30]
[338988704,1727103048203,-151.0,0.00037808,14]
[338988705,1727103048213,-151.0,0.00037808,14]
[338988706,1727103048223,-179.972164,0.00037808,14]
[338988707,1727103048232,-500.0,0.00037808,30]
[338988708,1727103048241,-500.0,0.00037808,30]
[338988709,1727103048251,-500.0,0.00037808,30]
[338988710,1727103048260,-500.0,0.00037808,30]
[338988711,1727103048270,-500.0,0.00037808,30]
[338988712,1727103048279,-500.0,0.00037808,30]
[338988713,1727103048289,-500.0,0.00037808,30]
[338988714,1727103048298,-500.0,0.00037808,30]
[338988715,1727103048311,-500.0,0.00037808,30]
[338988716,1727103048320,-500.0,0.00037808,30]
[338988717,1727103048330,-500.0,0.00037808,30]
[338988718,1727103048339,-500.0,0.00037808,30]
[338988719,1727103048350,-500.0,0.00037808,30]
[338988720,1727103048360,-500.0,0.00037808,30]
[338988721,1727103048369,-500.0,0.00037808,30]
[338988722,1727103048379,-500.0,0.00037808,30]
[338988723,1727103048390,-500.0,0.00037808,30]
[338988724,1727103048399,-500.0,0.00037808,30]
[338988725,1727103048409,-500.0,0.00037808,30]
[338988726,1727103048419,-500.0,0.00037808,30]
[338988727,1727103048429,-500.0,0.00037808,30]
[338988728,1727103048438,-500.0,0.00037808,30]
[338988729,1727103048448,-500.0,0.00037808,30]
[338988730,1727103048457,-500.0,0.00037808,30]
[338988731,1727103048467,-500.0,0.00037808,30]
[338988732,1727103048478,-500.0,0.00037808,30]
[338988733,1727103048487,-500.0,0.00037808,30]
[338988734,1727103048497,-500.6683097,0.00037808,30]
[338988735,1727103048506,-500.0,0.00037808,30]
[338988736,1727103048516,-404.74813469,0.00037808,30]
[338988737,1727103048525,-500.0,0.00037808,30]
[338988738,1727103048535,-500.0,0.00037808,30]
[338988739,1727103048544,-500.0,0.00037808,30]
[338988740,1727103048554,-1216.05,0.00037808,30]
[338988741,1727103048563,-500.0,0.00037808,30]
[338988742,1727103048573,-1216.05,0.00037808,30]
[338988743,1727103048582,-1216.05,0.00037808,30]
[338988744,1727103048592,-1216.05,0.00037808,30]
[338988745,1727103048602,-1216.05,0.00037808,30]
[338988746,1727103048611,-1216.05,0.00037808,30]
[338988747,1727103048621,-1216.05,0.00037808,30]
[338988748,1727103048630,-1216.05,0.00037808,30]
[338988749,1727103048640,-1216.05,0.00037808,30]
[338988750,1727103048650,-1216.05,0.00037808,30]
[338988751,1727103048660,-1216.05,0.00037808,30]
[338988752,1727103048670,-500.87962119,0.00037808,30]
[338988753,1727103048680,-1216.05,0.00037808,30]
[338988754,1727103048689,-500.0,0.00037808,30]
[338988755,1727103048699,-1216.05,0.00037808,30]
[338988756,1727103048709,-1216.05,0.00037808,30]
[338988757,1727103048721,-1216.05,0.00037808,30]
[338988758,1727103048731,-1216.05,0.00037808,30]
[338988759,1727103048740,-1216.05,0.00037808,30]
[338988760,1727103048750,-1216.05,0.00037808,30]
[338988761,1727103048759,-500.0,0.00037808,30]
[338988762,1727103048769,-1216.05,0.00037808,30]
[338988763,1727103048778,-1216.05,0.00037808,30]
[338988764,1727103048788,-500.0,0.00037808,30]
[338988765,1727103048797,-1013.65,0.00037808,7]
[338988766,1727103048807,-1216.05,0.00037808,30]
[338988767,1727103048816,-1216.05,0.00037808,30]
[338988768,1727103048826,-500.0,0.00037808,30]
[338988769,1727103048837,-1216.05,0.00037808,30]
[338988770,1727103048847,-1216.23730597,0.00037808,30]
[338988771,1727103048857,-500.0,0.00037808,30]
[338988772,1727103048867,-500.0,0.00037808,30]
[338988773,1727103048876,-500.19561742,0.00037808,30]
[338988774,1727103048887,-500.0,0.00037808,30]
[338988775,1727103048896,-500.0,0.00037808,30]
[338988776,1727103048906,-643.98340638,0.00037808,30]
[338988777,1727103048968,-500.0,0.00037808,30]
[338988778,1727103048978,-500.0,0.00037808,30]
[338988779,1727103048987,-500.0,0.00037808,30]
[338988780,1727103048997,-500.0,0.00037808,30]
[338988781,1727103049006,-630.51,0.00037808,30]
[338988782,1727103049017,-503.033448,0.00037808,30]
[338988783,1727103049026,-500.0,0.00037808,30]
[338988784,1727103049036,-500.0,0.00037808,30]
[338988785,1727103049045,-500.0,0.00037808,30]
[338988786,1727103049054,-500.0,0.00037808,30]
[338988787,1727103049064,-500.0,0.00037808,30]
[338988788,1727103049073,-500.0,0.00037808,30]
[338988789,1727103049083,-500.0,0.00037808,30]
[338988790,1727103049092,-500.0,0.00037808,30]
[338988791,1727103049102,-500.0,0.00037808,30]
[338988792,1727103049111,-500.0,0.00037808,30]
[338988793,1727103049121,-151.0,0.00037808,14]
[338988794,1727103049130,-151.0,0.00037808,14]
[338988795,1727103049141,-151.0,0.00037808,14]
[338988796,1727103049150,-500.0,0.00037808,30]
[338988797,1727103049159,-500.0,0.00037808,30]
[338988798,1727103049169,-151.0,0.00037808,14]
[338988799,1727103049178,-506.78903438,0.00037808,30]
[338988800,1727103049188,-500.0,0.00037808,30]
[338988801,1727103049198,-151.0,0.00037808,14]
[338988802,1727103049207,-249.590654,0.00037808,14]
[338988803,1727103049218,-500.0,0.00037808,30]
[338988804,1727103049228,-512.67958198,0.00037808,30]
[338988805,1727103049237,-500.0,0.00037808,30]
[338988806,1727103049246,-151.0,0.00037808,14]
[338988807,1727103049256,-500.0,0.00037808,30]
[338988808,1727103049266,-500.0,0.00037808,30]
[338988809,1727103049275,-500.0,0.00037808,30]
[338988810,1727103049284,-500.0,0.00037808,30]
[338988811,1727103049294,-500.0,0.00037808,30]
[338988812,1727103049304,-500.0,0.00037808,30]
[338988813,1727103049316,-500.0,0.00037808,30]
[338988814,1727103049326,-500.0,0.00037808,30]
[338988815,1727103049336,-500.0,0.00037808,30]
[338988816,1727103049346,-500.0,0.00037808,30]
[338988817,1727103049355,-500.0,0.00037808,30]
[338988818,1727103049364,-500.0,0.00037808,30]
[338988819,1727103049385,-500.0,0.00037808,30]
[338988820,1727103049403,-500.0,0.00037808,30]
[338988821,1727103049423,-500.0,0.00037808,30]
[338988822,1727103049443,-500.0,0.00037808,30]
[338988823,1727103049461,-500.0,0.00037808,30]
[338988824,1727103049479,-500.0,0.00037808,30]
[338988825,1727103049496,-500.0,0.00037808,30]
[338988826,1727103049512,-500.0,0.00037808,30]
[338988827,1727103049530,-542.81,0.00037808,30]
[338988828,1727103049549,-500.0,0.00037808,30]
[338988829,1727103049564,-500.0,0.00037808,30]
[338988830,1727103049579,-500.0,0.00037808,30]
[338988831,1727103049597,-152.92012589,0.00037808,30]
[338988832,1727103049612,-500.0,0.00037808,30]
[338988833,1727103049627,-500.0,0.00037808,30]
[338988834,1727103049642,-500.0,0.00037808,30]
[338988835,1727103049657,-500.25,0.00037808,30]
[338988836,1727103049673,-500.0,0.00037808,30]
[338988837,1727103049688,-500.0,0.00037808,30]
[338988838,1727103049703,-500.0,0.00037808,30]
[338988839,1727103049719,-500.0,0.00037808,30]
[338988840,1727103049735,-500.0,0.00037808,30]
[338988841,1727103049750,-500.0,0.00037808,30]
[338988842,1727103049767,-500.0,0.00037808,30]
[338988843,1727103049782,-500.0,0.00037808,30]
[338988844,1727103049797,-500.0,0.00037808,30]
[338988845,1727103049813,-524.00416265,0.00037808,30]
[338988846,1727103049828,-285.9713926,0.00037808,30]
[338988847,1727103049843,-500.0,0.00037808,30]
[338988848,1727103049859,-500.0,0.00037808,30]
[338988849,1727103049874,-500.0,0.00037808,30]
[338988850,1727103049889,-500.0,0.00037808,30]
[338988851,1727103049903,-500.0,0.00037808,30]
[338988852,1727103049919,-552.17,0.00037808,7]
[338988853,1727103049934,-500.0,0.00037808,30]
[338988854,1727103049948,-500.0,0.00037808,30]
[338988855,1727103049965,-500.0,0.00037808,30]
[338988856,1727103049979,-558.01055732,0.00037808,30]
[338988857,1727103049994,-500.0,0.00037808,30]
[338988858,1727103050009,-500.82562325,0.00037808,30]
[338988859,1727103050097,-500.0,0.00037808,30]
[338988860,1727103050107,-500.0,0.00037808,30]
[338988861,1727103050117,-500.0,0.00037808,30]
[338988862,1727103050127,-500.0,0.00037808,30]
[338988863,1727103050136,-500.0,0.00037808,30]
[338988864,1727103050146,-500.0,0.00037808,30]
[338988865,1727103050156,-500.0,0.00037808,30]
[338988866,1727103050166,-500.0,0.00037808,30]
[338988867,1727103050175,-500.0,0.00037808,30]
[338988868,1727103050184,-500.0,0.00037808,30]
[338988869,1727103050193,-500.0,0.00037808,30]
[338988870,1727103050202,-500.0,0.00037808,30]
[338988871,1727103050213,-500.0,0.00037808,30]
[338988872,1727103050222,-516.04197829,0.00037808,30]
[338988873,1727103050232,-546.53770863,0.00037808,30]
[338988874,1727103050241,-500.0,0.00037808,30]
[338988875,1727103050251,-500.0,0.00037808,30]
[338988876,1727103050260,-500.0,0.00037808,30]
[338988877,1727103050269,-10168.80421156,0.00037808,18]
[338988878,1727103052147,-12289.69578844,0.00037808,18]
[338988879,1727103052157,-500.0,0.00037808,30]
[338988880,1727103052167,-500.0,0.00037808,30]
[338988881,1727103052176,-500.0,0.00037808,30]
[338988882,1727103052186,-500.0,0.00037808,30]
[338988883,1727103052196,-500.0,0.00037808,30]
[338988884,1727103052205,-151.0,0.00037808,14]
[338988885,1727103052217,-500.0,0.00037808,30]
[338988886,1727103052227,-500.0,0.00037808,30]
[338988887,1727103052236,-500.0,0.00037808,30]
[338988888,1727103052245,-151.0,0.00037808,14]
[338988889,1727103052254,-500.0,0.00037808,30]
[338988890,1727103052264,-500.0,0.00037808,30]
[338988891,1727103052273,-500.0,0.00037808,30]
[338988892,1727103052283,-500.6,0.00037808,30]
[338988893,1727103052293,-151.0,0.00037808,14]
[338988894,1727103052302,-500.0,0.00037808,30]
[338988895,1727103052314,-500.0,0.00037808,30]
[338988896,1727103052324,-500.0,0.00037808,30]
[338988897,1727103052334,-500.0,0.00037808,30]
[338988898,1727103052343,-500.0,0.00037808,30]
[338988899,1727103052353,-500.0,0.00037808,30]
[338988900,1727103052363,-500.0,0.00037808,30]
[338988901,1727103052373,-500.0,0.00037808,30]
[338988902,1727103052383,-500.0,0.00037808,30]
[338988903,1727103052393,-500.0,0.00037808,30]
[338988904,1727103052403,-294.59628664,0.00037808,30]
[338988905,1727103052413,-151.0,0.00037808,14]
[338988906,1727103052422,-200.97263299,0.00037808,7]
[338988907,1727103052432,-500.0,0.00037808,30]
[338988908,1727103052441,-500.0,0.00037808,30]
[338988909,1727103052451,-502.09214234,0.00037808,30]
[338988910,1727103052461,-500.0,0.00037808,30]
[338988911,1727103052473,-500.0,0.00037808,30]
[338988912,1727103052483,-500.0,0.00037808,30]
[338988913,1727103052492,-525.28200387,0.00037808,30]
[338988914,1727103052502,-107.84256346,0.00037808,21]
[338988915,1727103052626,-88.73160753,0.00034623,2]
[338988916,1727103052876,-143.82236237,0.000334,12]
[338988917,1727103052914,-234.65836234,0.000334,12]
[338988926,1727103514060,150.0,0.00022,2]
[338988927,1727103558943,1125.94143065,0.00022,30]
[338988928,1727103558966,541.85856935,0.00022,30]
[338988929,1727103576046,150.0,0.00022,2]
[338988930,1727103599631,150.0,0.00022,7]
[338988933,1727103933209,-150.0,0.0002201,2]
[338988934,1727103933230,-78.02100038,0.00023,2]
[338988935,1727104027958,-71.97899962,0.00023,2]
[338988936,1727104027978,-438.293167,0.00027397,2]
[338988937,1727104027998,-150.0,0.00029684,2]
[338988938,1727104028019,-151.0,0.0003,120]
[338988939,1727104028040,-151.0,0.0003,120]
[338988940,1727104028061,-3000.0,0.0003,41]
[338988941,1727104028082,-1210.30575349,0.0003,3]
[338988942,1727104028103,-166.666666,0.00030135,2]
[338988943,1727104028124,-400.0,0.00030186,2]
[338988944,1727104028145,-477.344536,0.00030187,2]
[338988945,1727104028165,-189.0,0.00030352,2]
[338988946,1727104028188,-400.0,0.0003049,2]
[338988947,1727104028208,-3774.67590418,0.00030491,2]
[338988948,1727104040096,-188.46189984,0.00030491,2]
[338988949,1727104043129,-1879.33274109,0.00030491,2]
[338988950,1727104049112,-3126.78981969,0.00030491,2]
[338988951,1727104049137,-3644.565235,0.00030558,2]
[338988952,1727104049159,-250.0,0.00030582,2]
[338988953,1727104049180,-228.2883128,0.00030656,2]
[338988954,1727104049204,-223.548022,0.000314,2]
[338988955,1727104049225,-1218.5214767,0.00031408,2]
[338988956,1727104049247,-223.548022,0.00031486,2]
[338988957,1727104049270,-223.548022,0.00031572,2]
[338988958,1727104049292,-223.548022,0.00031658,2]
[338988959,1727104049312,-176.859069,0.00031738,30]
[338988960,1727104049334,-223.548022,0.00031744,2]
[338988961,1727104049357,-223.548022,0.0003183,2]
[338988962,1727104049378,-223.548022,0.00031916,2]
[338988963,1727104049400,-141.09334551,0.00032002,2]
[338988964,1727104054147,-82.45467649,0.00032002,2]
[338988965,1727104054169,-600.0,0.0003201,67]
[338988966,1727104054192,-223.548022,0.00032088,2]
[338988967,1727104054216,-223.548022,0.00032175,2]
[338988968,1727104054238,-223.46725225,0.00032261,2]
[338988970,1727104152115,-347.590462,0.00027397,2]
[338988971,1727104152137,-1297.376802,0.0003069,2]
[338988972,1727104152159,-1297.376802,0.00031375,2]
[338988973,1727104152181,-1951.3362777,0.00031398,2]
[338988974,1727104170113,-250.0,0.0003069,2]
[338988975,1727104170135,-13173.92308418,0.00031398,2]
[338989174,1727104240307,-400.0,0.00031397,2]
[338989176,1727104240317,-400.0,0.00031397,2]
[338989178,1727104240327,-546.5,0.00031398,2]
[338989181,1727104240342,-9228.24063812,0.00031398,2]
[338989183,1727104240352,-500.0,0.000314,5]
[338989184,1727104240361,-250.0,0.00031839,2]
[338989186,1727104240371,-250.0,0.00031926,2]
[338989188,1727104240380,-520.55397532,0.00031948,5]
[338989190,1727104240389,-250.0,0.00032013,2]
[338989192,1727104240398,-1297.376802,0.0003206,2]
[338989194,1727104240408,-250.0,0.00032101,2]
[338989196,1727104240417,-250.0,0.00032188,2]
[338989198,1727104240426,-198.434,0.00032261,32]
[338989200,1727104240435,-250.0,0.00032275,2]
[338989202,1727104240444,-250.0,0.00032363,2]
[338989204,1727104240453,-151.0,0.00032411,120]
[338989206,1727104240462,-250.0,0.0003245,2]
[338989208,1727104240471,-250.0,0.00032537,2]
[338989209,1727104240481,-250.0,0.00032625,2]
[338989211,1727104240490,-250.0,0.00032712,2]
[338989213,1727104240498,-250.0,0.00032799,2]
[338989215,1727104240507,-250.0,0.00032886,2]
[338989217,1727104240517,-501.37144861,0.00032967,5]
[338989218,1727104240526,-501.59760314,0.00032967,5]
[338989220,1727104240536,-250.0,0.00032974,2]
[338989222,1727104240545,-250.0,0.00033061,2]
[338989224,1727104240555,-168.273847,0.00033134,2]
[338989226,1727104240564,-250.0,0.00033148,2]
[338989227,1727104240572,-347.590462,0.00033165,2]
[338989229,1727104240581,-250.0,0.00033236,2]
[338989231,1727104240593,-250.0,0.00033323,2]
[338989233,1727104240602,-151.0,0.00033327,7]
[338989235,1727104240611,-500.0,0.000334,12]
[338989236,1727104240620,-3000.0,0.00033408,2]
[338989238,1727104240629,-250.0,0.0003341,2]
[338989240,1727104240638,-250.0,0.00033498,2]
[338989242,1727104240647,-288.54725829,0.000335,5]
[338989244,1727104240656,-500.0,0.000335,5]
[338989245,1727104240664,-560.0,0.0003379,2]
[338989247,1727104240673,-500.0,0.000338,5]
[338989249,1727104240682,-1851.570541,0.000338,13]
[338989251,1727104240691,-500.0,0.00033846,7]
[338989253,1727104240701,-308.90460095,0.00033846,7]
[338989254,1727104240710,-500.0,0.00033846,7]
[338989256,1727104240719,-244.47795886,0.00033846,7]
[338989258,1727104240728,-500.0,0.00033847,120]
[338989260,1727104240737,-719.68260676,0.00033847,2]
[338989261,1727104240746,-151.0,0.00034,120]
[338989263,1727104240755,-151.0,0.00034144,15]
[338989265,1727104240766,-560.0,0.00034537,2]
[338989267,1727104240776,-1025.08368353,0.00034623,2]
[338989269,1727104240785,-800.0,0.00034656,10]
[338989270,1727104240794,-524.0,0.00034804,2]
[338989272,1727104240804,-150.0,0.00034804,2]
[338989274,1727104240813,-1216.0,0.00034804,2]
[338989276,1727104240822,-151.0,0.00034822,120]
[338989277,1727104240831,-151.0,0.00034962,15]
[338989278,1727104240842,-800.0,0.00035478,10]
[338989280,1727104240852,-500.0,0.00035616,120]
[338989281,1727104240861,-500.0,0.00035616,120]
[338989282,1727104240870,-500.0,0.00035616,120]
[338989283,1727104240879,-500.0,0.00035616,120]
[338989284,1727104240888,-500.0,0.00035616,120]
[338989285,1727104240897,-512.28831638,0.00035616,120]
[338989286,1727104240906,-352.162658,0.00035616,120]
[338989287,1727104240916,-400.0,0.00035616,2]
[338989288,1727104240925,-151.0,0.00035779,15]
[338989289,1727104240934,-600.0,0.00036296,2]
[338989290,1727104240943,-800.0,0.000363,10]
[338989291,1727104240952,-783.0,0.00036366,2]
[338989292,1727104240961,-153.0,0.00036415,120]
[338989293,1727104240970,-153.0,0.00036415,120]
[338989294,1727104240979,-153.0,0.00036421,120]
[338989295,1727104240988,-153.0,0.00036421,120]
[338989296,1727104240997,-153.0,0.00036426,120]
[338989297,1727104241006,-153.0,0.00036426,120]
[338989298,1727104241015,-153.0,0.00036433,120]
[338989299,1727104241024,-153.0,0.00036433,120]
[338989300,1727104241033,-151.0,0.00036596,15]
[338989301,1727104241042,-150.0,0.000366,2]
[338989302,1727104241051,-600.0,0.00036674,2]
[338989303,1727104241060,-2000.0,0.00036749,2]
[338989304,1727104241070,-186.188011,0.00036897,2]
[338989305,1727104241079,-281.08744,0.00036897,2]
[338989306,1727104241090,-182.16339231,0.000369,2]
[338989307,1727104241099,-208.8152511,0.00036986,2]
[338989308,1727104241107,-336.54851168,0.00036989,15]
[338989309,1727104241116,-479.77910365,0.00036989,15]
[338989310,1727104241125,-500.0,0.00036989,15]
[338989311,1727104241134,-572.65102198,0.00036989,15]
[338989312,1727104241143,-26740.6283491,0.0003699,5]
[338989313,1727104241152,-56006.6149434,0.0003699,5]
[338989314,1727104241162,-59865.0,0.00037,2]
[338989315,1727104241172,-600.0,0.00037052,2]
[338989316,1727104241181,-859.13271159,0.00037205,120]
[338989317,1727104241191,-151.0,0.00037233,120]
[338989318,1727104241200,-281.08744,0.00037358,2]
[338989319,1727104241209,-151.0,0.00037413,15]
[338989320,1727104241218,-603.08731354,0.0003743,2]
[338989321,1727104241227,-26740.6283491,0.00037551,5]
[338989322,1727104241236,-56006.6149434,0.00037551,5]
[338989323,1727104241245,-1000.0,0.00037598,2]
[338989324,1727104241254,-53481.2566982,0.00037698,5]
[338989325,1727104241263,-17108.42517213,0.00037698,5]
[338989326,1727104241385,-1175.58500292,0.00037698,5]
[338989327,1727104241539,-20.94021109,0.00037698,5]
[338989328,1727104241562,-18881.18744002,0.00037698,5]
[338989329,1727104241601,-25.33566671,0.00037698,5]
[338989346,1727104243725,-272.5,0.0003698,3]
[338989347,1727104243735,-895.52358464,0.00037698,5]
[338989354,1727104246741,-130.1480712,0.00037698,5]
[338989384,1727105152141,-381.619463,0.00027397,2]
[338989385,1727105152164,-168.2093062,0.00029374,2]
[338989386,1727105152185,-118.7108877,0.00029706,2]
[338989387,1727105163767,4532.9,0.00025,120]
[338989388,1727105227130,-190.42642642,0.00025204,2]
[338989389,1727105228107,-309.57357358,0.00025204,2]
[338989390,1727105228128,-1000.00876041,0.00026574,2]
[338989391,1727105228151,-42.6446568,0.00029706,2]
[338989392,1727105228174,-846.6227906,0.00029773,2]
[338989393,1727105228197,-161.572355,0.00029794,2]
[338989394,1727105228219,-2411.64808491,0.00029822,2]
[338989395,1727105232151,-1124.12739352,0.00029822,2]
[338989397,1727105348119,-347.590462,0.00027397,2]
[338989398,1727105348143,-250.0,0.00028413,2]
[338989399,1727105348166,-250.0,0.00028491,2]
[338989400,1727105348189,-250.0,0.00028569,2]
[338989401,1727105348215,-250.0,0.00028647,2]
[338989402,1727105348236,-250.0,0.00028725,2]
[338989403,1727105348257,-250.0,0.00028803,2]
[338989404,1727105348283,-250.0,0.0002888,2]
[338989405,1727105348305,-250.0,0.00028958,2]
[338989406,1727105348328,-250.0,0.00029036,2]
[338989407,1727105348350,-250.0,0.00029114,2]
[338989408,1727105348372,-250.0,0.00029192,2]
[338989409,1727105348394,-250.0,0.0002927,2]
[338989410,1727105348551,-250.0,0.00029348,2]
[338989411,1727105348575,-2906.3878847,0.00029359,2]
[338989412,1727105348598,-300.0,0.00029425,2]
[338989413,1727105348621,-250.0,0.00029426,2]
[338989414,1727105348643,-250.0,0.00029504,2]
[338989415,1727105348665,-250.0,0.00029582,2]
[338989416,1727105348687,-250.0,0.0002966,2]
[338989417,1727105348709,-250.0,0.00029738,2]
[338989418,1727105348732,-250.0,0.00029816,2]
[338989419,1727105348753,-300.0,0.00029821,2]
[338989420,1727105348775,-6747.77868459,0.00029822,2]
[338989421,1727105349117,-1882.72500224,0.00029822,2]
[338989422,1727105355109,-12733.72083474,0.00029822,2]
[338989423,1727105355130,-481.588756,0.00029822,2]
[338989424,1727105368096,-1041.411244,0.00029822,2]
[338989425,1727105368117,-238.672268,0.00029854,2]
[338989426,1727105368138,-529.358201,0.00029889,2]
[338989427,1727105368160,-250.0,0.00029893,2]
[338989428,1727105368180,-4000.0,0.0003,30]
[338989429,1727105368201,-529.358201,0.00030574,2]
[338989430,1727105368221,-529.358201,0.00031259,2]
[338989431,1727105368242,-500.0,0.000317,5]
[338989432,1727105368264,-420.0,0.00031732,2]
[338989433,1727105368284,-500.0,0.00032145,2]
[338989434,1727105368306,-500.0,0.00032145,2]
[338989435,1727105368332,-418.95380928,0.00032145,2]